{"text_format":"1","workbook":"xlsx","n_sheets":14,"sheets":["Disclaimer","Instructions","Configuration","Summary","Intel Chassis","Serverboard Config","Serverboard","Chassis","Processors","Memory","PCI","HardDrive","Peripherals","Revision"],"not_rendered":{"charts":0,"images":1,"macros":1,"external_links":0,"defined_names":78,"comments":2,"pivot_tables":0},"unopened":[],"bounds":{"document_bytes":16777216,"sheet_cells":100000,"rows_first":2000,"rows_last":500,"rows_between":2000,"halvings":0,"cell_chars":16384,"cell_head_chars":4096},"cells_cut":0,"cells_raw":0,"read":"whole","date_system":"1900"}

{"sheet":"Disclaimer","index":0,"n_rows":0,"n_cols":0,"rows_kept":0,"cut":false,"hidden":false,"merged":[]}

{"sheet":"Instructions","index":1,"n_rows":1,"n_cols":1,"rows_kept":1,"cut":false,"hidden":false,"merged":[]}
["        Power Budget Instructions"]

{"sheet":"Configuration","index":2,"n_rows":39,"n_cols":30,"rows_kept":39,"cut":false,"hidden":false,"merged":[[25,0,29,0],[30,0,33,0],[34,0,36,0],[37,0,38,0],[5,2,5,5],[5,6,5,9],[6,0,13,0],[14,0,18,0],[19,0,24,0],[0,0,0,1],[0,2,0,5],[0,6,0,9],[1,0,2,0],[3,0,4,0]]}
["Notes:\n1.  The 25°C configuration alone is limited to elevations of 900m or less\n2.  LAN SKU only analized for Orange Beach\n3.  AXX2FDRIBIOM driven by connector cooling in corner IOM.  \n4. ...\n5.  Processor throttling may occur with a system fan failure which may impact system performance.\n6.  Specifically for A3/A4 individual Power Supply selection power  margin is required to meet thermal specifications:\n      a) For dual power supply configuration, power budget must fit within  single power supply rated load and be installed in dual configuration, or\n      b) For single power supply configuration, power budget must be sized with 30% margin to single power supply rated load.\n7.  GPGPU cards may have performance impact during ambient excursions\n8.  When identifying memory in the table, only Rank and Width are required.  Capacity is not required.\n9.  LV refers to low voltage DIMMs (1.35V)\n10.  ...\n11. Confirm the case temperature specification for the SSD to make appropriate selection\n12.  Fan fail of dual-rotor fans refers to one rotor fail. \"Fan Fail Support\" indicates if fan fail can be supported with specified configuration in each column.",null,"Base System SKUs:    ROW",null,null,null," Base System SKUs:                 LAN"]
["ASHRAE (See note 1)","Classifications","25C","A2","A3","A4","25C","A2","A3","A4"]
[null,"Max Ambient","25°C","35°C","40°C","45°C","25°C","35°C","40°C","45°C","<-- See note 1",null,null,null,null,null,"Possibly a 0C ambient for McAfee (cold start up)"]
["Cooling (See note 12)","Redundant Fan  Configuration","●","●","●","●","●","●","●","●",null,null,null,null,null,null,null,null,null,null,null,null,null,null,null,null,null,null,null,"Prioritize CPU's first, then Memory Then….."]
[null,"Fan Fail Support","●","●",null,null,"●","●"]
["PS (See note 6)","Power Supplies","See Tool",null,null,null,"See Tool",null,null,null,"<-- see note 6"]
["EP Processors    (See Note 5)","E5-4640, 2.4 GHz, 95W, 8 Cores, 20 MB Cache, 95 W","●","●","●","●","●","●","●",null,"<-- see note 5"]
[null,"E5-4650L, 2.6 GHz, 115W, 8 Cores, 20 MB Cache, 115 W","●","●","●","●","●","●","●",null,"<-- see note 5"]
[null,"E5-4650, 2.7 GHz, 130W, 8 Cores, 20 MB Cache, 130 W","●","●","●","●","●","●","●",null,"<-- see note 5"]
[null,"E5-4603, 2 GHz, 95W, 4 Cores, 10 MB Cache, 95 W","●","●","●","●",null,null,null,null,"<-- see note 6"]
[null,"E5-4617, 2.9 GHz, 130W, 6 Cores, 15 MB Cache, 130 W","●","●","●","●","●",null,null,null,"<-- see note 5"]
[null,"E5-4620, 2.2 GHz, 95W, 8 Cores, 16 MB Cache, 95 W","●","●","●","●","●",null,null,null,"<-- see note 5"]
[null,"E5-4607, 2.2 GHz, 95W, 6 Cores, 12 MB Cache, 95 W","●","●","●","●","●",null,null,null,"<-- see note 5"]
[null,"E5-4610, 2.4 GHz, 95W, 6 Cores, 15 MB Cache, 95 W","●","●","●","●","●",null,null,null,"<-- see note 5"]
["Memory Type (See notes 8 and 9)","Dual Rank x8 Normal and LV, Quad Rank x8 LV","●","●","●","●","●","●","●","●",null,null,null,null,null,null,null,null,null,null,"McAfee only planning on using DRx8 and x4"]
[null,"Dual Rank x4 Normal and LV","●","●","●","●","●","●","●","●",null,null,null,null,null,null,null,null,null,null,"McAfee only planning on using DRx8 and x4"]
[null,"Quad Rank x8 Normal","●","●","●","●","●","●","●","●"]
[null,"Quad Rank x4 Normal and LV","●","●","●","","n/a","n/a","n/a","n/a"]
[null,"Load Reduced DIMM","●","●","●","","n/a","n/a","n/a","n/a",null,null,null,null,null,null,null,null,null,null,"Potentially limit LRDIMM to cool other components"]
["Add-in Cards     (See note 2)","Riser #1 - Top Slot","●","●","●","●","●","●","●",null,"<-- see note 2"]
[null,"Riser #1 - Bottom Slot","●","●","●","●","●","●","●",null,"<-- see note 2"]
[null,"Riser #1 - Front","●","●","●","●","n/a","n/a","n/a","n/a"]
[null,"Riser #2 - Top Slot","●","●","●","●","●","●","●",null,"<-- see note 2"]
[null,"Riser #2 - Bottom","●","●","●","●","●","●","●",null,"<-- see note 2"]
[null,"Riser #2 - Front","●","●","●","●","n/a","n/a","n/a","n/a"]
[null,"AXX10GBTWLIOM - Dual 10GBASE-T IO Module ","●","●","●",null,"n/a","n/a","n/a","n/a",null,null,null,null,null,"Twinville"]
[null,"AXX10GBNIAIOM - Dual SFP+ port 10GbE IO Module","●","●","●","●","n/a","n/a","n/a","n/a",null,null,null,null,null,"Niantic"]
[null,"AXX1FDRIBIOM - Single Port FDR Infiniband IO Module","●","●",null,null,"n/a","n/a","n/a","n/a","<-- see note 3",null,null,null,null,"FDR Single Port"]
[null,"AXX2FDRIBIOM - Dual Port FDR Infiniband IO Module","●","●",null,null,"n/a","n/a","n/a","n/a","<-- see note 3",null,null,null,null,"FDR Dual Port"]
[null,"AXX4P1GBPWLIOM - Quad Port 1GbE IO Module","●","●","●","●","n/a","n/a","n/a","n/a",null,null,null,null,null,"Powerville"]
["GPGPU (See note 7)","Active up to 300W","●","●","●",null,"n/a","n/a","n/a","n/a","<-- See Note 7",null,null,null,null,null,null,null,null,null,"Need more data"]
[null,"Active up to 225W","●","●","●",null,"n/a","n/a","n/a","n/a","<-- See note 7",null,null,null,null,null,null,null,null,null,"Need more data"]
[null,"Passive up to 300W","●",null,null,null,"n/a","n/a","n/a","n/a",null,null,null,null,null,null,null,null,null,null,"Need more data"]
[null,"Passive up to 75W","●","●","","","n/a","n/a","n/a","n/a",null,null,null,null,null,null,null,null,null,null,"Need more data"]
["Battery Backup (See note 10)","BBU (rated to 45C)","●","●","●",null,"●"]
[null,"Supercap (rated to 55C)","●","●","●","●","●","●","●"]
[null,"Cache Offload Module (rated to 55C)","●","●","●","●","●","●","●"]
["Internal SSD (See note 11)","Rated to 60C","●","●","●","●","●","●","●"]
[null,"Rated to 70C","●","●","●","●","●","●","●","●"]

{"sheet":"Summary","index":3,"n_rows":34,"n_cols":9,"rows_kept":34,"cut":false,"hidden":false,"merged":[[0,1,0,3]]}
["Power Budget",{"$f":"CONCATENATE(INDEX(Chassis!$N$3:$N$13,'Intel Chassis'!$B3),\" / \",INDEX(Serverboard!A$2:A$13,'Serverboard Config'!$B5) )","v":"(Select a Chassis) / (Select Serverboard)"}]
["Chassis/ Power Supply / Cooling:",{"$f":"INDEX(Chassis!A$3:A$13,'Intel Chassis'!$B3)","v":"(Select Chassis)"}]
["Serverboard:",{"$f":"INDEX(Serverboard!A$2:A$13,'Serverboard Config'!$B5)","v":"(Select Serverboard)"}]
["System Totals"," +12V (amps)","12VSB (amps)","Total System Watts "]
[{"$f":"CONCATENATE(\"Processors - Qty \",'Serverboard Config'!C4, \":\")","v":"Processors - Qty 1:"},{"$f":"SUM('Serverboard Config'!F3)","v":0},{"$f":"SUM('Serverboard Config'!G3)","v":0},{"$f":"SUM('Serverboard Config'!H3)","v":0}]
[{"$f":"CONCATENATE(\"Modules + PCI Cards - Qty \",('Serverboard Config'!B9>1) + ('Serverboard Config'!B10>1) + ('Serverboard Config'!B11>1) + ('Serverboard Config'!B12>1) +('Serverboard Config'!B13>1)+('Serverboard Config'!B14>1)+('Serverboard Config'!B15>1)+('Serverboard Config'!B18>1),\":\")","v":"Modules + PCI Cards - Qty 1:"},{"$f":"SUM('Serverboard Config'!F9:F18)","v":0},{"$f":"SUM('Serverboard Config'!G9:G18)","v":0.15510000000000002},{"$f":"SUM('Serverboard Config'!H9:H18)","v":1.8612000000000002}]
[{"$f":"CONCATENATE(\"Hard Drives - Qty \",'Intel Chassis'!C4,\":\")","v":"Hard Drives - Qty 0:"},{"$f":"SUM('Intel Chassis'!G4:G4)","v":0},0,{"$f":"SUM('Intel Chassis'!I4:I4)","v":0}]
["Serverboard & Memory:",{"$f":"SUM('Serverboard Config'!F5:F6)","v":0},{"$f":"SUM('Serverboard Config'!G5:G6)","v":0},{"$f":"SUM('Serverboard Config'!H5:H6)","v":0}]
["Chassis & Peripherals:",{"$f":"_Sys12 - B7","v":0},{"$f":"'Intel Chassis'!H10","v":0},{"$f":"3.3*Sys3.3+5*_Sys5+ 12*_Sys12-D7","v":0}]
["System Totals:",{"$f":"SUM(B5:B9)","v":0},{"$f":"SUM(C5:C9)","v":0.15510000000000002},{"$f":"SUM(D5:D9)","v":1.8612000000000002}]
[{"$f":"TEXT(INDEX(Summary!H19:H24,Summary!B19),\"###\") & TEXT(INDEX(Summary!I19:I24,Summary!B19),\"###\") &\" PS DC Output Limits:\"","v":"120VAC PS DC Output Limits:"},{"$f":"INDEX(Chassis!B$3:B$13,'Intel Chassis'!$B3)","v":0},{"$f":"INDEX(Chassis!C$3:C$13,'Intel Chassis'!$B3)","v":0},{"$f":"INDEX(OFFSET(Chassis!U3:U13,,(B19-1)),'Intel Chassis'!B3)","v":0},"<-- These limits may change based on inlet voltage.  If value is zero then there is a mis-match between input voltage and chassis power supply type."]
["CLST Allowance",{"$f":"'Serverboard Config'!F23","v":0},null,{"$f":"'Serverboard Config'!H23","v":0}]
["Total System Limits",{"$f":"B12+PS1_12","v":0},{"$f":"C12+PS1_5VSB","v":0},{"$f":"D12+ps1CombLim","v":0}]
["Margins to Limit:",{"$f":"B13-B10","v":0},{"$f":"C13-C10","v":-0.15510000000000002},{"$f":"D13-PowerTotal","v":-1.8612000000000002},{"$f":"IF((OR(B14<0,C14<0)),\"<-- Limits Exceeded!\",\"<--System Margins\")","v":"<-- Limits Exceeded!"}]
["Negative margins show configuration exceeds a specified limit.",null,null,{"$f":"(D11-D10)/D11","v":{"$error":"#DIV/0!"}},"<-- % margin to PS rating"]
[]
[]
["AC inlet power estimate (below)"]
["Input Voltage:",2," (Volts)",null,null,null,null,220,"VAC"]
["Estimated  Inlet Power:",{"$f":"IF(INDEX(Chassis!$H$3:$M$13,'Intel Chassis'!$B3,B19)=\"na\",\"na\",PowerTotal/ (INDEX(Chassis!$H$3:$M$13,'Intel Chassis'!$B3,B19)+0.001))","v":1.8593406593406598}," (Watts)","Calculation is blank if voltage does not match PS type",null,null,null,120,"VAC"]
["Estimated Inlet Current:",{"$f":"IF(B20=\"na\",\"na\",B20/ABS(INDEX(H19:H24,B19)))","v":1.5494505494505499E-2}," (Amps)","Calculation is blank if voltage does not match PS type",null,null,null,110,"VAC"]
["Estimated Thermal Dissipation:",{"$f":"IF(B20=\"na\",\"na\",B20*3.41)","v":6.3403516483516507}," (BTU/Hr)","Calculation is blank if voltage does not match PS type",null,null,null,100,"VAC"]
["Note: Estimates are most accurate at max loading.",null,null,null,null,null,null,-48,"VDC"]
[null,null,null,null,null,null,null,-60,"VDC"]
[]
["If your desired configuration exceeds the power supply limits, two power supplies are required.  The two power supplies will operate in a current sharing mode "]
["to deliver the additional power needed for your configuration.  Furthermore, the two power supplies may need to be sourced from separate AC circuits in order to not"]
["exceed maximum AC outlet current.  Exceeding maximum AC outlet current may cause a circuit breaker to trip."]
[]
["For A3/A4 individual PS selection "]
["     1) For dual power supply configuration, power budget must fit within single power supply rated load and be installed in dual configuration, or"]
["     2) For single power supply configuration, power budget must be sized with 30% margin to single power supply rated load."]
[]
[{"$f":"CONCATENATE(\"Revision: \",Revision!B1)","v":"Revision: 1"},{"$f":"Revision!A1","v":"2012-10-13"}]

{"sheet":"Intel Chassis","index":4,"n_rows":17,"n_cols":11,"rows_kept":17,"cut":false,"hidden":false,"merged":[]}
["Power Budget",{"$f":"CONCATENATE(INDEX(Chassis!$N$3:$N$13,B3), \" System Configuration\")","v":"(Select a Chassis) System Configuration"},null,null,null,null,null,null,null,null,"HSBP VRM Efficiency"]
["System Feature","Description","Qty",null,"+3.3V (amps)","+5V (amps)"," +12V (amps)","12V \nstby (amps)","Power\n(watts)",null,{"$f":"INDEX(Chassis!$G$3:$G$13,B3)","v":1}]
["Chassis:",1,null,null,null,null,{"$f":"INDEX(Chassis!$E$3:$E$13,B3)+IF(INDEX(Chassis!$F$3:$F$13,B3)=\"Y\",(INDEX(Processors!C2:C20,'Serverboard Config'!B3)*'Serverboard Config'!C4),0)","v":0},null,{"$f":"G3*12+H3*12","v":0}," Includes System Fans "]
["Hard Drive Type: ",1,0,null,null,{"$f":"INDEX(HardDrive!$C$2:$C$16,B4) *C4 * 1","v":0},{"$f":"(INDEX(HardDrive!$D$2:$D$16,B4)*C4+((F4*5)/12)/$K$2) *1","v":0},null,0,{"$f":"IF(C4>(INDEX(HardDrive!$F$19:$F$31*$C$5,'Intel Chassis'!$B$5)),\" <-- Max Supported HDD Count Exceeded!\",\" \")","v":" "}]
["Backplane Type: ",1,0,null,null,null,{"$f":"(INDEX(HardDrive!$D$19:$D$31,B5) *C5+((F5*5)/12)/$K$2) *1","v":0},null,0]
["USB: ","Number of Devices (100mA/device)",0,null,null,{"$f":"0.1*C6","v":0},{"$f":"((F6*5)/12)/_5vVRM","v":0},null,0]
["Display: ","Optional LCP",0,null,null,null,null,{"$f":"(0.171*3.3)/12/_stbyVRM*C7","v":0},0]
["Slim-line Bay: ",1,1,null,null,{"$f":"INDEX(Peripherals!C$3:C$9,$B8) *C8","v":0},{"$f":"(INDEX(Peripherals!$D$3:$D$9,B8)*C8+((F8*5)/12)/_5vVRM) *1","v":0},null,0]
["SSD Bay: ",1,0,null,{"$f":"INDEX(Peripherals!B$12:B$18,$B9)*C9","v":0},{"$f":"INDEX(Peripherals!C$12:C$18,$B9) *C9","v":0},{"$f":"(INDEX(Peripherals!$D$12:$D$18,B9)*C9+((E9*3.3)/12)/_3vVRM+((F9*5)/12)/_5vVRM) *1","v":0},null,0]
[null,"SubTotals:",null,null,null,null,{"$f":"SUM(G3:G9)","v":0},{"$f":"SUM(H3:H9)","v":0},{"$f":"E10*3.3+F10*5+G10*12","v":0}]
[null,"SubTotal Chassis Power (Watts):",null,null,null,null,{"$f":"G10*12","v":0},{"$f":"H10*5","v":0},{"$f":"SUM(E11:G11)","v":0}]
[null,"Total System usage:",null,null,null,null,{"$f":"Summary!B10","v":0},{"$f":"Summary!C10","v":0.15510000000000002},{"$f":"Summary!D10","v":1.8612000000000002}]
[null,{"$f":"TEXT(INDEX(Summary!H19:H24,Summary!B19),\"###\") & TEXT(INDEX(Summary!I19:I24,Summary!B19),\"###\") &\" PS DC Output Limits:\"","v":"120VAC PS DC Output Limits:"},null,null,null,null,{"$f":"PS1_12","v":0},{"$f":"PS1_5VSB","v":0},{"$f":"ps1CombLim","v":0},"<-- These limits may change based on inlet voltage"]
[null,"CLST Allowance:",null,null,null,null,{"$f":"'Serverboard Config'!F23","v":0},null,{"$f":"'Serverboard Config'!H23","v":0}]
[null,"Total System Limits:",null,null,null,null,{"$f":"'Serverboard Config'!F24","v":0},{"$f":"H13","v":0},{"$f":"'Serverboard Config'!H24","v":0}]
[null,"Margins compared to Limits:",null,null,null,null,{"$f":"G15-G12","v":0},-0.15510000000000002,{"$f":"I15-I12","v":-1.8612000000000002},{"$f":"IF(OR(G16<0,H16<0,I16<0),\"<-- Limits Exceeded!\",\"<--System Margins\")","v":"<-- Limits Exceeded!"}]
[null,null,null,null,null,null,null,null,{"$f":"(I13-I12)/I13","v":{"$error":"#DIV/0!"}},"<-- % margin to PS rating"]

{"sheet":"Serverboard Config","index":5,"n_rows":35,"n_cols":17,"rows_kept":35,"cut":false,"hidden":false,"merged":[[0,1,0,7]]}
["Power Budget",{"$f":"CONCATENATE(INDEX(Serverboard!A$2:A$13,$B5),\" Configuration\")","v":"(Select Serverboard) Configuration"},null,null,null,null,null,null,null,"CPU VRM Efficiency","Mem VR Efficiency","3.3v VRM Efficiency","5v VRM Efficiency","3.3 Stby VR Efficiency"]
["Serverboard Feature","Description",null,"+3.3V (amps)","+5V (amps)"," +12V (amps)","12V \nstby (amps)","Power (watts)",null,{"$f":"INDEX(Serverboard!E$2:E$11,$B5)","v":1},{"$f":"INDEX(Serverboard!F$2:F$11,$B5)","v":0},{"$f":"INDEX(Serverboard!G$2:G$11,$B5)","v":1},{"$f":"INDEX(Serverboard!H$2:H$11,$B5)","v":1},{"$f":"INDEX(Serverboard!I$2:I$11,$B5)","v":1},"<--Hide these columns"]
["Processors:",1,null,null,null,{"$f":"C4*INDEX(Processors!B$2:B$20,$B3)/12/VRMefficiency*0.9","v":0},null,{"$f":"F3*12+E3*5","v":0}]
[null,"Quantity:",1]
["Serverboard:",1,null,null,null,{"$f":"INDEX(Serverboard!B$2:B$13,$B5) *1","v":0},{"$f":"INDEX(Serverboard!C$2:C$13,$B5) *1","v":0},{"$f":"INDEX(Serverboard!D$2:D$13,$B5) *1","v":0}]
["Memory:",1,{"$f":"(C4-1)*(C7-1)*(C8-1)","v":0},null,null,{"$f":"IF(C4=1,0,((INDEX(Memory!A5:D16,'Serverboard Config'!B6,C8)*(C4-1)*(C7-1)*(C8-1)/12/_MemVR*0.9)))","v":0},null,{"$f":"D6*3.3+E6*5+F6*12+G6*12","v":0},{"$f":"IF(ISERR(F6),\"<---  Invalid DIMM Configuration\",\"\")","v":""}]
[null,"# of DIMM Channels ",1]
[null,"# of DIMMs per Channel",1]
["PCI Card #1:",1,null,{"$f":"INDEX(PCI!B$2:B$19,$B9)","v":0},{"$f":"INDEX(PCI!C$2:C$19,$B9)","v":0},{"$f":"INDEX(PCI!D$2:D$19,$B9)+((D9*3.3)/12)/$L$2+((E9*5)/12)/$M$2","v":0},{"$f":"((INDEX(PCI!$E$2:$E$19,$B9)*3.3)+(INDEX(PCI!$F$2:$F$19,$B9))*5)/12/_stbyVRM","v":0},{"$f":"F9*12+G9*12","v":0}]
["PCI Card #2:",1,null,{"$f":"INDEX(PCI!B$2:B$19,$B10)","v":0},{"$f":"INDEX(PCI!C$2:C$19,$B10)","v":0},{"$f":"INDEX(PCI!D$2:D$19,$B10)+((D10*3.3)/12)/$L$2+((E10*5)/12)/$M$2","v":0},{"$f":"((INDEX(PCI!$E$2:$E$19,$B10)*3.3)+(INDEX(PCI!$F$2:$F$19,$B10))*5)/12/_stbyVRM","v":0},0]
["PCI Card #3:",1,null,{"$f":"INDEX(PCI!B$2:B$19,$B11)","v":0},{"$f":"INDEX(PCI!C$2:C$19,$B11)","v":0},{"$f":"INDEX(PCI!D$2:D$19,$B11)+((D11*3.3)/12)/$L$2+((E11*5)/12)/$M$2","v":0},{"$f":"((INDEX(PCI!$E$2:$E$19,$B11)*3.3)+(INDEX(PCI!$F$2:$F$19,$B11))*5)/12/_stbyVRM","v":0},0]
["PCI Card #4:",1,null,{"$f":"INDEX(PCI!B$2:B$19,$B12)","v":0},{"$f":"INDEX(PCI!C$2:C$19,$B12)","v":0},{"$f":"INDEX(PCI!D$2:D$19,$B12)+((D12*3.3)/12)/$L$2+((E12*5)/12)/$M$2","v":0},{"$f":"((INDEX(PCI!$E$2:$E$19,$B12)*3.3)+(INDEX(PCI!$F$2:$F$19,$B12))*5)/12/_stbyVRM","v":0},0]
["Internal PCI Card #5:",1,null,{"$f":"INDEX(PCI!B$2:B$19,$B13)","v":0},{"$f":"INDEX(PCI!C$2:C$19,$B13)","v":0},{"$f":"INDEX(PCI!D$2:D$19,$B13)+((D13*3.3)/12)/$L$2+((E13*5)/12)/$M$2","v":0},{"$f":"((INDEX(PCI!$E$2:$E$19,$B13)*3.3)+(INDEX(PCI!$F$2:$F$19,$B13))*5)/12/_stbyVRM","v":0},0]
["Internal PCI Card #6:",1,null,{"$f":"INDEX(PCI!B$2:B$19,$B14)","v":0},{"$f":"INDEX(PCI!C$2:C$19,$B14)","v":0},{"$f":"INDEX(PCI!D$2:D$19,$B14)+((D14*3.3)/12)/$L$2+((E14*5)/12)/$M$2","v":0},{"$f":"((INDEX(PCI!$E$2:$E$19,$B14)*3.3)+(INDEX(PCI!$F$2:$F$19,$B14))*5)/12/_stbyVRM","v":0},0]
["RMM4:",2,null,{"$f":"INDEX(PCI!B$40:B$44,$B15)","v":0},{"$f":"INDEX(PCI!C$40:C$44,$B15)","v":0},{"$f":"INDEX(PCI!D$40:D$44,$B15)+((D15*3.3)/12)/$L$2+((E15*5)/12)/$M$2","v":0},{"$f":"((INDEX(PCI!E40:E44,$B15)*3.3)+(INDEX(PCI!F40:F44,$B15))*5)/12/_stbyVRM","v":0.15510000000000002},1.8612000000000002]
["eUSB:",1,null,{"$f":"INDEX(PCI!B$47:B$51,$B16)","v":0},{"$f":"INDEX(PCI!C$47:C$51,$B16)","v":0},{"$f":"INDEX(PCI!D$47:D$51,$B16)+((D16*3.3)/12)/$L$2+((E16*5)/12)/$M$2","v":0},{"$f":"((INDEX(PCI!E47:E51,$B16)*3.3)+(INDEX(PCI!F47:F51,$B16))*5)/12/_stbyVRM","v":0},0]
["Primary IO Module:",1,null,{"$f":"INDEX(PCI!B$29:B$37,$B17)","v":0},{"$f":"INDEX(PCI!C$29:C$37,$B17)","v":0},{"$f":"INDEX(PCI!D$29:D$37,$B17)+((D17*3.3)/12)/$L$2+((E17*5)/12)/$M$2","v":0},{"$f":"((INDEX(PCI!E28:E36,$B17)*3.3)+(INDEX(PCI!F28:F36,$B17))*5)/12/_stbyVRM","v":0},{"$f":"F17*12+G17*12","v":0}]
["Secondary IO Module:",1,null,{"$f":"INDEX(PCI!B$29:B$37,$B18)","v":0},{"$f":"INDEX(PCI!C$29:C$37,$B18)","v":0},{"$f":"INDEX(PCI!D$29:D$37,$B18)+((D18*3.3)/12)/$L$2+((E18*5)/12)/$M$2","v":0},{"$f":"((INDEX(PCI!E29:E37,$B18)*3.3)+(INDEX(PCI!F29:F37,$B18))*5)/12/_stbyVRM","v":0},0]
[null,1,null,null,null,{"$f":"SUM(F3:F18)","v":0},{"$f":"SUM(G3:G18)","v":0.15510000000000002},{"$f":"SUM(H3:H18)","v":1.8612000000000002}]
[null,"SubTotal Serverboard Power (Watts):",null,null,null,{"$f":"(F19)*12","v":0},{"$f":"(G19)*5","v":0.77550000000000008},{"$f":"SUM(D20:G20)","v":0.77550000000000008}]
[null,"Total System usage:",null,null,null,{"$f":"Summary!B10","v":0},{"$f":"Summary!C10","v":0.15510000000000002},{"$f":"Summary!D10","v":1.8612000000000002}]
[null,{"$f":"TEXT(INDEX(Summary!H19:H24,Summary!B19),\"###\") & TEXT(INDEX(Summary!I19:I22,Summary!B19),\"###\") &\" PS DC Output Limits:\"","v":"120VAC PS DC Output Limits:"},null,null,null,{"$f":"PS1_12","v":0},{"$f":"PS1_5VSB","v":0},{"$f":"ps1CombLim","v":0},"<-- These limits may change based on inlet voltage"]
[null,"CLST Allowance:",null,null,null,{"$f":"F3*25%+F6*20%","v":0},null,{"$f":"H3*25%+H6*20%","v":0}]
[null,"Total System Limits:",null,null,null,{"$f":"F23+F22","v":0},{"$f":"G23+G22","v":0},{"$f":"H23+H22","v":0}]
[null,null,"Margin compared to Limits:",null,null,{"$f":"F24-F21","v":0},{"$f":"G24-G21","v":-0.15510000000000002},{"$f":"H24-H21","v":-1.8612000000000002},{"$f":"IF(OR(F25<0,G25<0,H25<0),\"<-- Limits Exceeded!\",\"<--System Margins\")","v":"<-- Limits Exceeded!"}]
[null,null,null,null,null,null,null,{"$f":"(H22-H21)/H22","v":{"$error":"#DIV/0!"}},"<-- % margin to PS rating"]
[]
[]
[null,null,null,null,null,null,null,null,null,null,null,null,null,null,null,null," "]
[]
[]
["CPU = 25% of TDP"]
["Memory = 10% Bandwidth"]
[]
[null,null,null,null,null,{"$f":"IF(C6=1,0,((HLOOKUP(INDEX(Memory!A26:A39,$C6),Memory!B4:D16,B6+2,FALSE))/12/_MemVR*0.9))","v":{"$error":"#N/A"}}]

{"sheet":"Serverboard","index":6,"n_rows":11,"n_cols":10,"rows_kept":11,"cut":false,"hidden":false,"merged":[]}
["Serverboard",12,"12VSB","Watts","CPU VR\nEff%","Mem VR Eff%","5v VR\nEff%","3v VR\nEff%","Stby/Aux Eff%"]
["(Select Serverboard)",null,null,null,1,null,1,1,1]
["S4600LT2 Serverboard",{"$f":"24.5/12","v":2.0416666666666665},{"$f":"0.414/12/0.9","v":3.833333333333333E-2},{"$f":"B3*12+C3*12","v":24.96},0.85,0.84,0.85,0.9,0.87,"Pwr Budget v0.3"]
["S4600LH2 Serverboard",{"$f":"20.5/12","v":1.7083333333333333},{"$f":"0.414/12/0.9","v":3.833333333333333E-2},{"$f":"B4*12+C4*12","v":20.96},0.85,0.84,0.85,0.9,0.87,"Pwr Budget v0.3"]
["S4600LTM Serverboard",{"$f":"24.5/12","v":2.0416666666666665},{"$f":"0.414/12/0.9","v":3.833333333333333E-2},{"$f":"B5*12+C5*12","v":24.96},0.85,0.84,0.85,0.9,0.87,"Pwr Budget v0.3"]
[null,null,null,0,0.8,0.8,0.8,0.8,0.8,"<-- Define Custom Numbers Here"]
[null,null,null,0,0.8,0.8,0.8,0.8,0.8,"<-- Define Custom Numbers Here"]
[null,null,null,0,0.8,0.8,0.8,0.8,0.8,"<-- Define Custom Numbers Here"]
[null,null,null,0,0.8,0.8,0.8,0.8,0.8,"<-- Define Custom Numbers Here"]
[null,null,null,0,0.8,0.8,0.8,0.8,0.8,"<-- Define Custom Numbers Here"]
[null,null,null,0,0.8,0.8,0.8,0.8,0.8,"<-- Define Custom Numbers Here"]

{"sheet":"Chassis","index":7,"n_rows":18,"n_cols":27,"rows_kept":18,"cut":false,"hidden":false,"merged":[[0,1,0,2],[0,20,0,25],[0,14,0,19],[0,7,0,12]]}
["Chassis",null,null,"Total","Fans","HS Fan","HSBP ","PS Eff%",null,null,null,null,null,"Product Name","Total 12 DC Current (Amps)",null,null,null,null,null,"Total DC Ouput (Watts)"]
["Selection","12V","12VSB","Watts","12V","(Y/N)","VR Eff%","220VAC","120VAC","110VAC","100VAC","-48DCV","-60DCV",null,"220VAC","120VAC","110VAC","100VAC","-48DCV","-60DCV","220VAC","120VAC","110VAC","100VAC","-48DCV","-60DCV"]
["(Select Chassis)",null,null,null,null,null,1,1,1,1,1,1,1,"(Select a Chassis)"]
["R2XXXL (1200W AC PSU)",{"$f":"INDEX(O4:T4,Summary!$B$19)","v":83},2.1,1200,{"$f":"11*1.82","v":20.02},"Y",0.9,0.91,0.91,0.91,0.91,"na","na","R2XXXL",100,83,83,83,null,null,1200,1000,1000,1000,null,null,"PS Eff% from measured curves"]
["R2XXXL (1600W AC PSU)",{"$f":"INDEX(O5:T5,Summary!$B$19)","v":110},2.1,1600,{"$f":"11*1.82","v":20.02},"Y",0.9,0.91,0.91,0.91,0.91,"na","na","R2XXXL",133,110,104,94,null,null,1600,1320,1250,1130,null,null,"PS Eff% from measured curves"]
["R2XXXL (1600W DC PSU)",{"$f":"INDEX(O6:T6,Summary!$B$19)","v":0},2.1,1600,20.02,"Y",0.9,"na","na","na","na",0.88,0.88,"R2XXXL",null,null,null,null,34.4,27.5,null,null,null,null,1600,1600,"PS Eff% from measured curves"]
["User Definable",{"$f":"INDEX(O7:T7,Summary!$B$19)","v":0},null,{"$f":"INDEX(U7:Z7,Summary!$B$19)","v":0},null,"N",0.8,0.8,0.8,0.8,0.8,0.8,0.8,null,null,null,null,null,null,null,null,null,null,null,null,null,"<-- Define Custom Numbers Here"]
["User Definable",{"$f":"INDEX(O8:T8,Summary!$B$19)","v":0},null,{"$f":"INDEX(U8:Z8,Summary!$B$19)","v":0},null,"N",0.8,0.8,0.8,0.8,0.8,0.8,0.8,null,null,null,null,null,null,null,null,null,null,null,null,null,"<-- Define Custom Numbers Here"]
["User Definable",{"$f":"INDEX(O9:T9,Summary!$B$19)","v":0},null,{"$f":"INDEX(U9:Z9,Summary!$B$19)","v":0},null,"N",0.8,0.8,0.8,0.8,0.8,0.8,0.8,null,null,null,null,null,null,null,null,null,null,null,null,null,"<-- Define Custom Numbers Here"]
["User Definable",{"$f":"INDEX(O10:T10,Summary!$B$19)","v":0},null,{"$f":"INDEX(U10:Z10,Summary!$B$19)","v":0},null,"N",0.8,0.8,0.8,0.8,0.8,0.8,0.8,null,null,null,null,null,null,null,null,null,null,null,null,null,"<-- Define Custom Numbers Here"]
["User Definable",{"$f":"INDEX(O11:T11,Summary!$B$19)","v":0},null,{"$f":"INDEX(U11:Z11,Summary!$B$19)","v":0},null,"N",0.8,0.8,0.8,0.8,0.8,0.8,0.8,null,null,null,null,null,null,null,null,null,null,null,null,null,"<-- Define Custom Numbers Here"]
["User Definable",{"$f":"INDEX(O12:T12,Summary!$B$19)","v":0},null,{"$f":"INDEX(U12:Z12,Summary!$B$19)","v":0},null,"N",0.8,0.8,0.8,0.8,0.8,0.8,0.8,null,null,null,null,null,null,null,null,null,null,null,null,null,"<-- Define Custom Numbers Here"]
["User Definable",{"$f":"INDEX(O13:T13,Summary!$B$19)","v":0},null,{"$f":"INDEX(U13:Z13,Summary!$B$19)","v":0},null,"N",0.8,0.8,0.8,0.8,0.8,0.8,0.8,null,null,null,null,null,null,null,null,null,null,null,null,null,"<-- Define Custom Numbers Here"]
[]
[]
[]
["Note: HS Fan  (Y/N) determines if an Active Heatsink (Heatsink with Fan) in Intel® Boxed Processors is used (adds fan power to budget)"]
["Note: PS Eff is estimate @ typ voltage & 35% to 90% loading based on PS measurement data."]

{"sheet":"Processors","index":8,"n_rows":30,"n_cols":7,"rows_kept":30,"cut":false,"hidden":false,"merged":[]}
["Processor Types","TDP (W)","HS Fan (A)","Source",null,"VRM#1","VRM#2"]
["(Select Processor)",null,null,null,null,"5V VRM","12V VRM"]
["E5-4640, 2.4 GHz, 95W, 8 Cores, 20 MB Cache",95,null,"EDS rev1.8 - Intel Doc #442505",null,null,"None"]
["E5-4650L, 2.6 GHz, 115W, 8 Cores, 20 MB Cache",115,null,"EDS rev1.8 - Intel Doc #442505",null,null,"None"]
["E5-4650, 2.7 GHz, 130W, 8 Cores, 20 MB Cache",130,null,"EDS rev1.8 - Intel Doc #442505"]
["E5-4603, 2 GHz, 95W, 4 Cores, 10 MB Cache",95,null,"EDS rev1.8 - Intel Doc #442505"]
["E5-4617, 2.9 GHz, 130W, 6 Cores, 15 MB Cache",130,null,"EDS rev1.8 - Intel Doc #442505"]
["E5-4620, 2.2 GHz, 95W, 8 Cores, 16 MB Cache",95,null,"EDS rev1.8 - Intel Doc #442505"]
["E5-4607, 2.2 GHz, 95W, 6 Cores, 12 MB Cache",95,null,"EDS rev1.8 - Intel Doc #442505"]
["E5-4610, 2.4 GHz, 95W, 6 Cores, 15 MB Cache",95,null,"EDS rev1.8 - Intel Doc #442505"]
[" ",null,null,null,"<-- Define Custom Numbers Here"]
[" ",null,null,null,"<-- Define Custom Numbers Here"]
[" ",null,null,null,"<-- Define Custom Numbers Here"]
[" ",null,null,null,"<-- Define Custom Numbers Here"]
[" ",null,null,null,"<-- Define Custom Numbers Here"]
[" ",null,null,null,"<-- Define Custom Numbers Here"]
[" ",null,null,null,"<-- Define Custom Numbers Here"]
[" ",null,null,null,"<-- Define Custom Numbers Here"]
[null,null,null,null,"<-- Define Custom Numbers Here"]
[null,null,null,null,"<-- Define Custom Numbers Here"]
[null,null,null,null,"<-- Define Custom Numbers Here"]
[]
[]
["Processor Quantities (used for tool operation)"]
[0,0]
[1,1]
[2,2]
[3,3]
[4,4]
["Note: HS Fan = Fan 12v current for Active Heatsink which ships with Intel® Boxed Processors"]

{"sheet":"Memory","index":9,"n_rows":36,"n_cols":5,"rows_kept":36,"cut":false,"hidden":false,"merged":[]}
[null," DIMM Power Per Channel Configuration"]
[]
[null,"1DPC","2DPC","3DPC"]
[]
["(Select Memory)"]
["8GB DDR3 RDIMM (4Gb, DRx8)",5.2,5.2,3.9]
["16GB DDR3 RDIMM (4Gb, DRx4)",8.3000000000000007,7.4,5]
["32GB DDR3 LR-DIMM (4Gb, QRx4)",14.9,11.8,8.1999999999999993]
["32GB DDR3 DIMM (4Gb, QRx4)",11.2,9.6,"na","*3DPC only supported by LR-DIMMs"]
["16GB DDR3 DIMM (4Gb, QRx8)",5.7,5.7,"na","*3DPC only supported by LR-DIMMs"]
["User Definable",null,null,null,"<-- Define Custom Numbers Here"]
["User Definable",null,null,null,"<-- Define Custom Numbers Here"]
["User Definable",null,null,null,"<-- Define Custom Numbers Here"]
["User Definable",null,null,null,"<-- Define Custom Numbers Here"]
["User Definable",null,null,null,"<-- Define Custom Numbers Here"]
["User Definable",null,null,null,"<-- Define Custom Numbers Here"]
[]
[]
[]
["Note:"]
["DIMM power will vary depending on the # of DIMMs & the actual strees/bandwidth used."]
["DIMMs are assumed to be evenly distributed across available channels on a 4 channel motherboard."]
["Numbers assume fan control set to performance mode"]
[]
["Channels Per CPU"]
[0]
[1]
[2]
[3]
[4]
[]
["DPC (Dimms per Channel)"]
[0]
[1]
[2]
[3]

{"sheet":"PCI","index":10,"n_rows":51,"n_cols":8,"rows_kept":51,"cut":false,"hidden":false,"merged":[]}
["PCI Add in Cards","Amps of +3.3V","Amps of +5V","Amps of +12V","Amps of    3.3V Stby","Amps of    5V Stby","Watts"]
["Slot Empty",null,null,null,null,null," "]
["PCI-X (5V) Typical",null,2,null,null,null,{"$f":"B3*3.3+C3*5+D3*12+E3*3.3+F3*5","v":10}]
["PCIe (3V) Typical",3,null,null,null,null,9.8999999999999986]
["PCIe (3.3V / 12V) Typical",2,null,0.25,null,null,9.6]
["PCIe (3.3V / 12V) High",2,null,0.7,null,null,14.999999999999998]
["RMS25PB080 (PCIe ROC)",0.86,null,0.55000000000000004,0.2,null,{"$f":"B7*3.3+C7*5+D7*12+E7*3.3","v":10.098000000000001}]
["RMS25PB040 (PCIe ROC)",0.86,null,0.55000000000000004,0.2,null,10.098000000000001]
["Xeon Phi 75W (No Supplimental Pwr Cables)",null,null,{"$f":"75/12","v":6.25},null,null,{"$f":"B9*3.3+C9*5+D9*12+E9*3.3","v":75}]
["Xeon Phi 150W (One 2x3 Pwr Cable)",null,null,{"$f":"(75+75)/12","v":12.5},null,null,{"$f":"B10*3.3+C10*5+D10*12+E10*3.3+F10*5","v":150}]
["Xeon Phi 225W (Two 2x3 Pwr Cable)",null,null,{"$f":"(75+2*75)/12","v":18.75},null,null,225]
["Xeon Phi 225W (One 2x4 Pwr Cable)",null,null,{"$f":"(75+150)/12","v":18.75},null,null,225]
["Xeon Phi 300W (One 2x4 & One 2x3 Pwr Cable)",null,null,{"$f":"(75+75+150)/12","v":25},null,null,300]
["User Definable ",null,null,null,null,null,{"$f":"B14*3.3+C14*5+D14*12+E14*3.3+F14*5","v":0},"<-- Define Custom Card Here"]
["User Definable ",null,null,null,null,null,0,"<-- Define Custom Card Here"]
["User Definable ",null,null,null,null,null,0,"<-- Define Custom Card Here"]
["User Definable ",null,null,null,null,null,0,"<-- Define Custom Card Here"]
["User Definable ",null,null,null,null,null,0,"<-- Define Custom Card Here"]
["User Definable ",null,null,null,null,null,0,"<-- Define Custom Card Here"]
[]
["SAS ROC/IOC"]
["Slot Empty",null,null,null,null,null," "]
["User Definable ",null,null,null,null,null,{"$f":"B23*3.3+C23*5+D23*12+E23*3.3+F23*5","v":0},"<-- Define Custom Card Here"]
["User Definable ",null,null,null,null,null,{"$f":"B24*3.3+C24*5+D24*12+E24*3.3+F24*5","v":0},"<-- Define Custom Card Here"]
["User Definable ",null,null,null,null,null,0,"<-- Define Custom Card Here"]
["User Definable ",null,null,null,null,null,0,"<-- Define Custom Card Here"]
[]
["IO Module"]
["Slot Empty",null,null,null,null,null," "]
["AXX10GBNIAIOM",1.4570000000000001,null,0.56999999999999995,2E-3,null,{"$f":"B30*3.3+C30*5+D30*12+E30*3.3+F30*5","v":11.6547}]
["AXX10GBTWLIOM",null,null,1.21,1.9E-2,0.03,14.732699999999999]
["AXX4P1GBPWLIOM",null,null,0.27,0.35,null,4.3949999999999996]
["AXX1FDRIBIOM",0.77,null,0.46,2E-3,null,8.0676000000000005]
["AXX2FDRIBIOM",1.23,null,0.46,2E-3,null,{"$f":"B34*3.3+C34*5+D34*12+E34*3.3+F34*5","v":9.5856000000000012}]
["AXXQAAIOMOD",0.43,null,1.25,2E-3,null,16.425599999999999]
["User Definable ",null,null,null,null,null,0,"<-- Define Custom Card Here"]
["User Definable ",null,null,null,null,null,0,"<-- Define Custom Card Here"]
[]
["RMM4"]
["Slot Empty",null,null,null,null,null," "]
["AXXRMM4",null,null,null,{"$f":"0.498+0.066","v":0.56400000000000006},null,{"$f":"B41*3.3+C41*5+D41*12+E41*3.3+F41*5","v":1.8612000000000002}]
["User Definable ",null,null,null,null,null,0,"<-- Define Custom Card Here"]
["User Definable ",null,null,null,null,null,0,"<-- Define Custom Card Here"]
["User Definable ",null,null,null,null,null,0,"<-- Define Custom Card Here"]
[]
["eUSB/SATADOM"]
["Slot Empty",null,null,null,null,null," "]
["Generic eUSB",null,null,null,0.08,null,{"$f":"B48*3.3+C48*5+D48*12+E48*3.3+F48*5","v":0.26400000000000001}]
["Generic SATADOM",null,0.17,null,null,null,0.85000000000000009]
["User Definable ",null,null,null,null,null,{"$f":"B50*3.3+C50*5+D50*12+E50*3.3+F50*5","v":0},"<-- Define Custom Card Here"]
["User Definable ",null,null,null,null,null,0,"<-- Define Custom Card Here"]

{"sheet":"HardDrive","index":11,"n_rows":31,"n_cols":7,"rows_kept":31,"cut":false,"hidden":false,"merged":[]}
["Hard Drives","Amps of +3.3V","Amps of +5V","Amps of +12V","Watts"]
["Empty"]
["3.5\" SATA Typical Power (12W)",null,0.5,0.8,{"$f":"B3*3.3+C3*5+D3*12","v":12.100000000000001}]
["3.5\" SAS Typical Power (15W)",null,0.8,0.92,{"$f":"B4*3.3+C4*5+D4*12","v":15.040000000000001}]
["2.5\" SATA Typical Power (5W)",null,1,0,5]
["2.5\" SAS Typical Power (9W)",null,0.81,0.41,8.9700000000000006]
["3.5\" Seagate ST33000650SS Constellation ES.2",null,0.74,0.49,9.58,null,"<-- Define Custom Device Here"]
["3.5\" SAS Seagate ST3600057SS Cheetah 15K.7",null,0.45,1.17,16.29,null,"<-- Define Custom Device Here"]
["2.5\" SAS Seagate ST91000640SS Constellation.2",null,1,0.17,7.04,null,"<-- Define Custom Device Here"]
["2.5\" SAS Seagate ST9146852SS Savvio 15K.2",null,0.43,0.4,6.9500000000000011,null,"<-- Define Custom Device Here"]
["2.5\" SAS Intel X25-M 64GB SSDSA2SE064G1",null,0.52,null,2.6,null,"<-- Define Custom Device Here"]
["Micron P300 200MB MTFDDAC200SAL-1N1",null,0.7,null,3.5,null,"<-- Define Custom Device Here"]
["User Definable",null,null,null,0,null,"<-- Define Custom Device Here"]
["User Definable",null,null,null,0,null,"<-- Define Custom Device Here"]
["User Definable",null,null,null,0,null,"<-- Define Custom Device Here"]
["User Definable",null,null,null,0,null,"<-- Define Custom Device Here"]
[]
["HSBP","Amps of +3.3V","Amps of +5V","Amps of +12V","Watts","# of HDD"]
["Empty"]
["1U 4x3.5\" HSBP",null,null,8.6999999999999994E-2,{"$f":"B20*3.3+C20*5+D20*12","v":1.044},4]
["1U 8x2.5\" HSBP",null,null,{"$f":"0.117+0.061","v":0.17799999999999999},2.1360000000000001,8]
["User Definable",null,null,null,0]
["User Definable",null,null,null,0]
["User Definable",null,null,null,0]
["User Definable",null,null,null,0]
["User Definable",null,null,null,0,null,"<-- Define Custom Device Here"]
["User Definable",null,null,null,0,null,"<-- Define Custom Device Here"]
["User Definable",null,null,null,0,null,"<-- Define Custom Device Here"]
["User Definable",null,null,null,0,null,"<-- Define Custom Device Here"]
["User Definable",null,null,null,0,null,"<-- Define Custom Device Here"]
["User Definable",null,null,null,0,null,"<-- Define Custom Device Here"]

{"sheet":"Peripherals","index":12,"n_rows":27,"n_cols":7,"rows_kept":27,"cut":false,"hidden":false,"merged":[]}
["Misc Peripherals","Amps of +3.3V","Amps of +5V","Amps of +12V","Amps of 3VSB","Watts"]
["Slim-Line Devices"]
["Empty"]
["AXXSATADVDROM",null,0.7,null,null,{"$f":"B4*3.3+C4*5+D4*12++E4*3.3","v":3.5}]
["AXXSATADVDRWROM",null,0.8,null,null,{"$f":"B5*3.3+C5*5+D5*12++E5*3.3","v":4}]
["User Definable",null,null,null,null,0,"<-- Define Custom Peripherals Here"]
["User Definable",null,null,null,null,0,"<-- Define Custom Peripherals Here"]
["User Definable",null,null,null,null,0,"<-- Define Custom Peripherals Here"]
["User Definable",null,null,null,null,0,"<-- Define Custom Peripherals Here"]
[]
["SSD Drives"]
["Empty"]
["Intel 320 600GB SSDSA2CW600G3xx",null,0.15,null,null,{"$f":"B13*3.3+C13*5+D13*12++E13*3.3","v":0.75}]
["Intel X25-M 64GB SSDSA2SE064G1",null,{"$f":"2.6/5","v":0.52},null,null,2.6]
["Micron P300 200MB MTFDDAC200SAL-1N1",null,{"$f":"3.5/5","v":0.7},null,null,3.5,"<-- Define Custom Peripherals Here"]
["User Definable",null,null,null,null,0,"<-- Define Custom Peripherals Here"]
["User Definable",null,null,null,null,0,"<-- Define Custom Peripherals Here"]
["User Definable",null,null,null,null,0,"<-- Define Custom Peripherals Here"]
[]
["Midplane SAS Expanders"]
["Empty"]
["User Definable",null,null,null,null,{"$f":"B22*3.3+C22*5+D22*12++E22*3.3","v":0}]
["User Definable",null,null,null,null,0]
["User Definable",null,null,null,null,0,"<-- Define Custom Peripherals Here"]
["User Definable",null,null,null,null,0,"<-- Define Custom Peripherals Here"]
["User Definable",null,null,null,null,0,"<-- Define Custom Peripherals Here"]
["User Definable",null,null,null,null,0,"<-- Define Custom Peripherals Here"]

{"sheet":"Revision","index":13,"n_rows":5,"n_cols":4,"rows_kept":5,"cut":false,"hidden":false,"merged":[]}
[{"$f":"MAX(A4:A27)","v":"2012-10-13"},{"$f":"MAX(B4:B27)","v":1},null,"<=== Linked to Summary Tab."]
[]
["Date","Rev","Notes","Init"]
["2012-09-13",0.1,"Initial Draft for review","rk"]
["2012-10-13",1,"Final Release","rk"]